[Event "Late-Titled-Tuesday-Blitz-September-12-2023"]
[Site "Chess.com"]
[Date "2023.09.12"]
[Round "7"]
[White "Msb2"]
[Black "Fandorine"]
[Result "1/2-1/2"]
[WhiteElo "3087"]
[BlackElo "2901"]
[TimeControl "180+1"]
[EndTime "15:15:20 PDT"]
[Termination "Game drawn - insufficient material"]

1. d4 {[%clk 0:03:00.9]} 1... Nf6 {[%clk 0:02:59.1]} 2. c4 {[%clk 0:03:01.7]}
2... e6 {[%clk 0:02:59.3]} 3. Nc3 {[%clk 0:03:02.3]} 3... d5 {[%clk 0:02:57.8]}
4. cxd5 {[%clk 0:03:03.2]} 4... exd5 {[%clk 0:02:58.2]} 5. Bg5 {[%clk
0:03:03.9]} 5... c6 {[%clk 0:02:58.8]} 6. e3 {[%clk 0:03:04.2]} 6... h6 {[%clk
0:02:59]} 7. Bf4 {[%clk 0:03:04.4]} 7... Bd6 {[%clk 0:02:56.7]} 8. Bxd6 {[%clk
0:03:04.2]} 8... Qxd6 {[%clk 0:02:57.6]} 9. Bd3 {[%clk 0:03:04.9]} 9... O-O
{[%clk 0:02:58]} 10. Nge2 {[%clk 0:03:05.7]} 10... Re8 {[%clk 0:02:57.9]} 11.
Qd2 {[%clk 0:03:06.4]} 11... a5 {[%clk 0:02:52]} 12. f3 {[%clk 0:03:04.3]} 12...
b5 {[%clk 0:02:51.8]} 13. a3 {[%clk 0:03:04.6]} 13... Ba6 {[%clk 0:02:48.3]} 14.
O-O {[%clk 0:02:59]} 14... Nbd7 {[%clk 0:02:46.6]} 15. Ng3 {[%clk 0:02:56.4]}
15... b4 {[%clk 0:02:44.6]} 16. axb4 {[%clk 0:02:57.3]} 16... Bxd3 {[%clk
0:02:44]} 17. Qxd3 {[%clk 0:02:52.6]} 17... axb4 {[%clk 0:02:40.4]} 18. Na4
{[%clk 0:02:33.7]} 18... g6 {[%clk 0:02:27.5]} 19. b3 {[%clk 0:02:33.1]} 19...
h5 {[%clk 0:02:26.7]} 20. Rac1 {[%clk 0:02:25.5]} 20... Re6 {[%clk 0:02:14.2]}
21. e4 {[%clk 0:02:05.1]} 21... dxe4 {[%clk 0:02:03]} 22. Nxe4 {[%clk 0:02:06]}
22... Nxe4 {[%clk 0:01:42]} 23. fxe4 {[%clk 0:02:06.9]} 23... Ne5 {[%clk
0:01:38.5]} 24. Qd1 {[%clk 0:01:37.7]} 24... Ng4 {[%clk 0:01:21.5]} 25. e5
{[%clk 0:01:38]} 25... Qe7 {[%clk 0:00:37.1]} 26. Qf3 {[%clk 0:01:35.9]} 26...
Rd8 {[%clk 0:00:31.3]} 27. Qf4 {[%clk 0:01:10.2]} 27... f6 {[%clk 0:00:18.5]}
28. h3 {[%clk 0:00:43.4]} 28... fxe5 {[%clk 0:00:18.6]} 29. Qg3 {[%clk
0:00:44.1]} 29... Nh6 {[%clk 0:00:10.1]} 30. dxe5 {[%clk 0:00:33.1]} 30... h4
{[%clk 0:00:10.6]} 31. Qf4 {[%clk 0:00:28.5]} 31... Nf5 {[%clk 0:00:10.5]} 32.
Rfe1 {[%clk 0:00:27.7]} 32... Rd4 {[%clk 0:00:10.2]} 33. Qf3 {[%clk 0:00:21]}
33... Rxe5 {[%clk 0:00:10.4]} 34. Rxe5 {[%clk 0:00:21.8]} 34... Qxe5 {[%clk
0:00:10.8]} 35. Qxc6 {[%clk 0:00:22.6]} 35... Qe3+ {[%clk 0:00:10.5]} 36. Kh1
{[%clk 0:00:23.3]} 36... Kg7 {[%clk 0:00:06.8]} 37. Qc8 {[%clk 0:00:17.6]} 37...
Re4 {[%clk 0:00:04.3]} 38. Rc7+ {[%clk 0:00:11.4]} 38... Re7 {[%clk 0:00:04.6]}
39. Rxe7+ {[%clk 0:00:11.5]} 39... Qxe7 {[%clk 0:00:05.5]} 40. Qc1 {[%clk
0:00:10.4]} 40... Qe5 {[%clk 0:00:05.1]} 41. Qb2 {[%clk 0:00:05.5]} 41... Qxb2
{[%clk 0:00:03.1]} 42. Nxb2 {[%clk 0:00:06.4]} 42... Nd4 {[%clk 0:00:03.7]} 43.
Nd3 {[%clk 0:00:07.2]} 43... Nxb3 {[%clk 0:00:04.4]} 44. Nxb4 {[%clk 0:00:07.9]}
44... Nd4 {[%clk 0:00:05.1]} 45. Nd5 {[%clk 0:00:08.4]} 45... Nf5 {[%clk
0:00:05.5]} 46. Kg1 {[%clk 0:00:08.3]} 46... g5 {[%clk 0:00:05.9]} 47. Kf2
{[%clk 0:00:08.6]} 47... Kf7 {[%clk 0:00:06.5]} 48. Nc3 {[%clk 0:00:08.2]} 48...
Kg6 {[%clk 0:00:06.1]} 49. Kf3 {[%clk 0:00:08.2]} 49... Nh6 {[%clk 0:00:04.7]}
50. Ne4 {[%clk 0:00:08.3]} 50... Kf5 {[%clk 0:00:04.2]} 51. Nd6+ {[%clk
0:00:08.8]} 51... Kg6 {[%clk 0:00:04.7]} 52. Ke4 {[%clk 0:00:08.6]} 52... g4
{[%clk 0:00:04.5]} 53. Kf4 {[%clk 0:00:08.5]} 53... gxh3 {[%clk 0:00:04.8]} 54.
gxh3 {[%clk 0:00:09.4]} 54... Nf7 {[%clk 0:00:05.1]} 55. Ne4 {[%clk 0:00:06.9]}
55... Nh6 {[%clk 0:00:04.8]} 56. Nd2 {[%clk 0:00:05.3]} 56... Nf7 {[%clk
0:00:04.7]} 57. Nf3 {[%clk 0:00:05.8]} 57... Kh5 {[%clk 0:00:04.2]} 58. Kf5
{[%clk 0:00:04.4]} 58... Nd6+ {[%clk 0:00:03.6]} 59. Kf4 {[%clk 0:00:04.6]}
59... Nf7 {[%clk 0:00:03.8]} 60. Kf5 {[%clk 0:00:03.2]} 60... Nd6+ {[%clk
0:00:04.1]} 61. Ke5 {[%clk 0:00:03.9]} 61... Ne8 {[%clk 0:00:03.9]} 62. Nd4
{[%clk 0:00:03.5]} 62... Ng7 {[%clk 0:00:03.7]} 63. Kf6 {[%clk 0:00:03.9]} 63...
Ne8+ {[%clk 0:00:03.3]} 64. Kf5 {[%clk 0:00:04.3]} 64... Nd6+ {[%clk 0:00:03.4]}
65. Ke5 {[%clk 0:00:04.8]} 65... Nc4+ {[%clk 0:00:03.7]} 66. Kf4 {[%clk
0:00:05]} 66... Nd6 {[%clk 0:00:04]} 67. Ne6 {[%clk 0:00:05.4]} 67... Nc4 {[%clk
0:00:04]} 68. Ng7+ {[%clk 0:00:04.9]} 68... Kg6 {[%clk 0:00:04.2]} 69. Nf5
{[%clk 0:00:05.7]} 69... Kh5 {[%clk 0:00:04.1]} 70. Ne7 {[%clk 0:00:04.7]} 70...
Nd6 {[%clk 0:00:03.8]} 71. Nd5 {[%clk 0:00:04.7]} 71... Kg6 {[%clk 0:00:03.6]}
72. Kg4 {[%clk 0:00:04.7]} 72... Ne4 {[%clk 0:00:03.4]} 73. Nf4+ {[%clk
0:00:05]} 73... Kh6 {[%clk 0:00:03.5]} 74. Nd3 {[%clk 0:00:03.2]} 74... Ng5
{[%clk 0:00:03]} 75. Kxh4 {[%clk 0:00:03.7]} 75... Nxh3 {[%clk 0:00:03.4]}
1/2-1/2

[Event "Late-Titled-Tuesday-Blitz-September-12-2023"]
[Site "Chess.com"]
[Date "2023.09.12"]
[Round "7"]
[White "likantrophuss"]
[Black "mbojan"]
[Result "1/2-1/2"]
[WhiteElo "2607"]
[BlackElo "2767"]
[TimeControl "180+1"]
[EndTime "15:15:20 PDT"]
[Termination "Game drawn by 50-move rule"]

1. Nf3 {[%clk 0:02:35]} 1... g6 {[%clk 0:03:00]} 2. g3 {[%clk 0:02:30.5]} 2...
Bg7 {[%clk 0:03:00.6]} 3. Bg2 {[%clk 0:02:28.4]} 3... d6 {[%clk 0:03:01.2]} 4.
d4 {[%clk 0:02:28.3]} 4... e5 {[%clk 0:03:00.8]} 5. dxe5 {[%clk 0:02:27.9]} 5...
dxe5 {[%clk 0:03:01.7]} 6. Qxd8+ {[%clk 0:02:28]} 6... Kxd8 {[%clk 0:03:02.6]}
7. Nc3 {[%clk 0:02:28.1]} 7... Be6 {[%clk 0:03:02.7]} 8. Ng5 {[%clk 0:02:24.8]}
8... c6 {[%clk 0:03:02.9]} 9. Nxe6+ {[%clk 0:02:24.8]} 9... fxe6 {[%clk
0:03:03.8]} 10. Bh3 {[%clk 0:02:24.6]} 10... Ke7 {[%clk 0:03:03.8]} 11. Bg5+
{[%clk 0:02:24.9]} 11... Nf6 {[%clk 0:02:52]} 12. Ne4 {[%clk 0:02:18.2]} 12...
Nd7 {[%clk 0:02:52]} 13. O-O-O {[%clk 0:02:17.2]} 13... Rad8 {[%clk 0:02:52.1]}
14. Rd3 {[%clk 0:02:04.4]} 14... h6 {[%clk 0:02:51.5]} 15. Bxf6+ {[%clk
0:02:04.6]} 15... Nxf6 {[%clk 0:02:37.3]} 16. Nc5 {[%clk 0:02:04.2]} 16... h5
{[%clk 0:02:14.8]} 17. Rxd8 {[%clk 0:01:55]} 17... Rxd8 {[%clk 0:02:13.1]} 18.
Nxe6 {[%clk 0:01:54.4]} 18... Bh6+ {[%clk 0:02:11.9]} 19. e3 {[%clk 0:01:50.4]}
19... Rd5 {[%clk 0:02:06.6]} 20. Rd1 {[%clk 0:01:41.3]} 20... Ne4 {[%clk
0:01:45]} 21. Rxd5 {[%clk 0:00:33]} 21... cxd5 {[%clk 0:01:44.3]} 22. Nc7 {[%clk
0:00:32.7]} 22... Kd6 {[%clk 0:01:37.1]} 23. Nxd5 {[%clk 0:00:33.1]} 23... Nxf2
{[%clk 0:01:11.7]} 24. Bg2 {[%clk 0:00:32.9]} 24... Ng4 {[%clk 0:00:26.7]} 25.
h3 {[%clk 0:00:05]} 25... Nxe3 {[%clk 0:00:25.9]} 26. Nxe3 {[%clk 0:00:05.2]}
26... Bxe3+ {[%clk 0:00:26.8]} 27. Kd1 {[%clk 0:00:05.8]} 27... Bf2 {[%clk
0:00:25.5]} 28. g4 {[%clk 0:00:06]} 28... b6 {[%clk 0:00:25.1]} 29. gxh5 {[%clk
0:00:06.1]} 29... gxh5 {[%clk 0:00:26]} 30. Bf3 {[%clk 0:00:06.1]} 30... h4
{[%clk 0:00:25.3]} 31. Ke2 {[%clk 0:00:06.6]} 31... Bg3 {[%clk 0:00:25.5]} 32.
Kd3 {[%clk 0:00:06.8]} 32... Ke6 {[%clk 0:00:24.1]} 33. Ke4 {[%clk 0:00:07.2]}
33... Bf4 {[%clk 0:00:24.3]} 34. b3 {[%clk 0:00:06.1]} 34... Kd6 {[%clk
0:00:24.5]} 35. c3 {[%clk 0:00:03.6]} 35... Kc5 {[%clk 0:00:24.4]} 36. Kd3
{[%clk 0:00:03.5]} 36... Bg3 {[%clk 0:00:24.1]} 37. Be4 {[%clk 0:00:03.7]} 37...
Be1 {[%clk 0:00:23.5]} 38. Bf3 {[%clk 0:00:03.9]} 38... Kd6 {[%clk 0:00:23.5]}
39. Be4 {[%clk 0:00:04.5]} 39... Ke6 {[%clk 0:00:23.9]} 40. Ke3 {[%clk
0:00:03.2]} 40... Bxc3 {[%clk 0:00:23.6]} 41. Kf3 {[%clk 0:00:02.4]} 41... Be1
{[%clk 0:00:23.7]} 42. Ke3 {[%clk 0:00:02.9]} 42... Kd6 {[%clk 0:00:24]} 43. Kd3
{[%clk 0:00:03.5]} 43... Kc5 {[%clk 0:00:24.6]} 44. a3 {[%clk 0:00:04.2]} 44...
Bg3 {[%clk 0:00:22]} 45. Kc3 {[%clk 0:00:02.8]} 45... Bf4 {[%clk 0:00:20.5]} 46.
b4+ {[%clk 0:00:03.3]} 46... Kd6 {[%clk 0:00:21]} 47. Kc4 {[%clk 0:00:03.5]}
47... Bc1 {[%clk 0:00:20.5]} 48. a4 {[%clk 0:00:04]} 48... Bd2 {[%clk
0:00:18.6]} 49. Kb5 {[%clk 0:00:03.5]} 49... Ke6 {[%clk 0:00:16.8]} 50. a5
{[%clk 0:00:03.9]} 50... bxa5 {[%clk 0:00:15]} 51. bxa5 {[%clk 0:00:04.8]} 51...
Kf6 {[%clk 0:00:15.7]} 52. a6 {[%clk 0:00:05]} 52... Kg5 {[%clk 0:00:14.3]} 53.
Kc6 {[%clk 0:00:04.8]} 53... Kf4 {[%clk 0:00:14.3]} 54. Kd5 {[%clk 0:00:05.2]}
54... Bc3 {[%clk 0:00:10.1]} 55. Bd3 {[%clk 0:00:05.6]} 55... Kg3 {[%clk
0:00:10.6]} 56. Bf5 {[%clk 0:00:06]} 56... Bd4 {[%clk 0:00:11.3]} 57. Ke4 {[%clk
0:00:06.2]} 57... Kf2 {[%clk 0:00:11.2]} 58. Be6 {[%clk 0:00:06.7]} 58... Ke2
{[%clk 0:00:11.4]} 59. Bf5 {[%clk 0:00:07.2]} 59... Kf2 {[%clk 0:00:11.4]} 60.
Be6 {[%clk 0:00:07.7]} 60... Kg2 {[%clk 0:00:12.1]} 61. Bc8 {[%clk 0:00:08.4]}
61... Kg3 {[%clk 0:00:12.8]} 62. Be6 {[%clk 0:00:09.3]} 62... Bc3 {[%clk
0:00:13.5]} 63. Bc8 {[%clk 0:00:10.2]} 63... Bb2 {[%clk 0:00:14.3]} 64. Bd7
{[%clk 0:00:10.9]} 64... Ba1 {[%clk 0:00:15.1]} 65. Bc8 {[%clk 0:00:11.8]} 65...
Kf2 {[%clk 0:00:15.9]} 66. Bd7 {[%clk 0:00:12.7]} 66... Ke2 {[%clk 0:00:16.7]}
67. Bc8 {[%clk 0:00:13.6]} 67... Kd2 {[%clk 0:00:17.5]} 68. Bd7 {[%clk
0:00:14.5]} 68... Bd4 {[%clk 0:00:17.2]} 69. Bc8 {[%clk 0:00:15.4]} 69... Kc3
{[%clk 0:00:18]} 70. Bd7 {[%clk 0:00:16.3]} 70... Kc4 {[%clk 0:00:18.7]} 71. Bc8
{[%clk 0:00:17]} 71... Kc5 {[%clk 0:00:19.2]} 72. Be6 {[%clk 0:00:16.3]} 72...
Kd6 {[%clk 0:00:18.8]} 73. Bc4 {[%clk 0:00:15.4]} 73... Ke7 {[%clk 0:00:18.6]}
74. Be2 {[%clk 0:00:16.3]} 74... Kf6 {[%clk 0:00:19.3]} 75. Bf1 {[%clk
0:00:17.2]} 75... Kg5 {[%clk 0:00:20]} 76. Bc4 {[%clk 0:00:17.4]} 76... Kh6
{[%clk 0:00:17.9]} 77. Bd3 {[%clk 0:00:18.3]} 77... Kg7 {[%clk 0:00:18.8]} 78.
Be2 {[%clk 0:00:18.9]} 78... Kf8 {[%clk 0:00:19.7]} 79. Bd3 {[%clk 0:00:19.8]}
79... Ke7 {[%clk 0:00:20.6]} 80. Be2 {[%clk 0:00:20.5]} 80... Kd8 {[%clk
0:00:21.5]} 81. Bd3 {[%clk 0:00:21.3]} 81... Kc7 {[%clk 0:00:22.4]} 82. Be2
{[%clk 0:00:22.1]} 82... Kb6 {[%clk 0:00:23.3]} 83. Bd3 {[%clk 0:00:23]} 83...
Ka5 {[%clk 0:00:24.2]} 84. Be2 {[%clk 0:00:23.8]} 84... Kb4 {[%clk 0:00:25.1]}
85. Bd3 {[%clk 0:00:24]} 85... Kc3 {[%clk 0:00:26]} 86. Bb5 {[%clk 0:00:24]}
86... Kd2 {[%clk 0:00:26.9]} 87. Bd7 {[%clk 0:00:24]} 87... Ke1 {[%clk
0:00:27.8]} 88. Bc8 {[%clk 0:00:24.4]} 88... Kf2 {[%clk 0:00:28.7]} 89. Bd7
{[%clk 0:00:25]} 89... Kg2 {[%clk 0:00:29.6]} 90. Bc8 {[%clk 0:00:25.7]} 90...
Kh1 {[%clk 0:00:30.5]} 91. Bd7 {[%clk 0:00:26.2]} 91... Kh2 {[%clk 0:00:31.4]}
92. Bc8 {[%clk 0:00:26.8]} 92... Kg1 {[%clk 0:00:32.3]} 93. Bd7 {[%clk
0:00:27.5]} 93... Kf1 {[%clk 0:00:33.2]} 94. Bc8 {[%clk 0:00:28.2]} 94... Ke1
{[%clk 0:00:34.1]} 95. Bd7 {[%clk 0:00:28.9]} 95... Kd1 {[%clk 0:00:35]} 96. Bc8
{[%clk 0:00:29.6]} 96... Kd2 {[%clk 0:00:35.6]} 97. Bd7 {[%clk 0:00:30.1]} 97...
Kc3 {[%clk 0:00:36.3]} 98. Bc8 {[%clk 0:00:30.6]} 98... Kc4 {[%clk 0:00:37.2]}
99. Bg4 {[%clk 0:00:30.7]} 99... Kc5 {[%clk 0:00:38.1]} 100. Be2 {[%clk
0:00:31]} 100... Kb6 {[%clk 0:00:38.8]} 101. Bd3 {[%clk 0:00:31.5]} 101... Ka5
{[%clk 0:00:39.7]} 102. Be2 {[%clk 0:00:32.2]} 1/2-1/2

[Event "Late-Titled-Tuesday-Blitz-September-12-2023"]
[Site "Chess.com"]
[Date "2023.09.12"]
[Round "7"]
[White "DefiantChair"]
[Black "drdaro"]
[Result "1/2-1/2"]
[WhiteElo "2668"]
[BlackElo "2308"]
[TimeControl "180+1"]
[EndTime "15:15:21 PDT"]
[Termination "Game drawn by repetition"]

1. e4 {[%clk 0:03:00.9]} 1... c5 {[%clk 0:03:00]} 2. Nf3 {[%clk 0:03:00.6]} 2...
e6 {[%clk 0:03:00.2]} 3. d4 {[%clk 0:03:01.1]} 3... cxd4 {[%clk 0:03:01.1]} 4.
Nxd4 {[%clk 0:03:02]} 4... Nf6 {[%clk 0:03:01.2]} 5. Nc3 {[%clk 0:03:01.9]} 5...
Nc6 {[%clk 0:03:01.7]} 6. Ndb5 {[%clk 0:03:02]} 6... Bb4 {[%clk 0:03:00.3]} 7.
a3 {[%clk 0:03:02.1]} 7... Bxc3+ {[%clk 0:03:00.1]} 8. Nxc3 {[%clk 0:03:03]}
8... d5 {[%clk 0:02:59.5]} 9. exd5 {[%clk 0:03:03.9]} 9... exd5 {[%clk
0:02:59.8]} 10. Bd3 {[%clk 0:03:04]} 10... O-O {[%clk 0:03:00.2]} 11. O-O {[%clk
0:03:04.2]} 11... d4 {[%clk 0:02:56.2]} 12. Ne2 {[%clk 0:03:04.3]} 12... Bg4
{[%clk 0:02:56.2]} 13. f3 {[%clk 0:03:04.5]} 13... Bh5 {[%clk 0:02:56.2]} 14.
Nf4 {[%clk 0:03:04.1]} 14... Bg6 {[%clk 0:02:56.7]} 15. Nxg6 {[%clk 0:03:04.3]}
15... hxg6 {[%clk 0:02:56.7]} 16. Qe1 {[%clk 0:03:00.5]} 16... Re8 {[%clk
0:02:48.4]} 17. Qh4 {[%clk 0:02:55.6]} 17... Ne5 {[%clk 0:02:19.6]} 18. Bg5
{[%clk 0:02:52.7]} 18... Nxd3 {[%clk 0:02:19.7]} 19. cxd3 {[%clk 0:02:53.6]}
19... Re2 {[%clk 0:01:54.6]} 20. Rfe1 {[%clk 0:02:49]} 20... Rxb2 {[%clk
0:01:49.1]} 21. Rac1 {[%clk 0:02:48.3]} 21... Rb3 {[%clk 0:01:43]} 22. Re5
{[%clk 0:02:37.6]} 22... Qd6 {[%clk 0:01:40.9]} 23. Rce1 {[%clk 0:02:36.8]}
23... Rf8 {[%clk 0:01:34]} 24. Bf4 {[%clk 0:02:31.3]} 24... Qxa3 {[%clk
0:01:22.9]} 25. Bg5 {[%clk 0:02:26.7]} 25... Qd6 {[%clk 0:01:20.7]} 26. Bf4
{[%clk 0:02:19.5]} 26... Qc6 {[%clk 0:01:18.4]} 27. Bg5 {[%clk 0:02:18.4]} 27...
Rxd3 {[%clk 0:01:17]} 28. f4 {[%clk 0:02:04.8]} 28... Rd2 {[%clk 0:01:13.8]} 29.
Qh3 {[%clk 0:02:03.7]} 29... d3 {[%clk 0:01:00.3]} 30. f5 {[%clk 0:02:03.5]}
30... Re2 {[%clk 0:00:42.9]} 31. R1xe2 {[%clk 0:02:02.2]} 31... dxe2 {[%clk
0:00:43.2]} 32. Rxe2 {[%clk 0:02:03.1]} 32... gxf5 {[%clk 0:00:38.4]} 33. Qxf5
{[%clk 0:02:02.9]} 33... Re8 {[%clk 0:00:23.8]} 34. Rxe8+ {[%clk 0:02:01]} 34...
Qxe8 {[%clk 0:00:24.1]} 35. h3 {[%clk 0:01:56]} 35... Qe6 {[%clk 0:00:21.1]} 36.
Qf4 {[%clk 0:01:45]} 36... Qe4 {[%clk 0:00:08]} 37. Qb8+ {[%clk 0:01:43.4]}
37... Kh7 {[%clk 0:00:07.9]} 38. Qxa7 {[%clk 0:01:40.8]} 38... Qe1+ {[%clk
0:00:08.6]} 39. Kh2 {[%clk 0:01:37.1]} 39... Qe5+ {[%clk 0:00:09]} 40. Kg1
{[%clk 0:01:37.1]} 40... Qxg5 {[%clk 0:00:09.8]} 41. Qxb7 {[%clk 0:01:37.7]}
41... Qe5 {[%clk 0:00:10.1]} 42. Qxf7 {[%clk 0:01:36.5]} 42... Qe1+ {[%clk
0:00:10.2]} 43. Kh2 {[%clk 0:01:36.4]} 43... Qe5+ {[%clk 0:00:10.5]} 44. Kg1
{[%clk 0:01:36.5]} 44... Qd4+ {[%clk 0:00:10.9]} 45. Kh2 {[%clk 0:01:36.5]}
45... Qd7 {[%clk 0:00:10.9]} 46. Qc4 {[%clk 0:01:35]} 46... Qd6+ {[%clk
0:00:11.1]} 47. Kg1 {[%clk 0:01:34.8]} 47... Kg6 {[%clk 0:00:09.8]} 48. Qc2+
{[%clk 0:01:33.8]} 48... Kf7 {[%clk 0:00:10.2]} 49. Qb3+ {[%clk 0:01:34.2]}
49... Qe6 {[%clk 0:00:10.7]} 50. Qb7+ {[%clk 0:01:34]} 50... Qe7 {[%clk
0:00:11.5]} 51. Qb3+ {[%clk 0:01:34.2]} 51... Kf8 {[%clk 0:00:11]} 52. Qb8+
{[%clk 0:01:33.5]} 52... Qe8 {[%clk 0:00:11.6]} 53. Qb4+ {[%clk 0:01:33.5]}
53... Kg8 {[%clk 0:00:11.9]} 54. Qc4+ {[%clk 0:01:33.2]} 54... Kh7 {[%clk
0:00:09.9]} 55. Qd3+ {[%clk 0:01:31.1]} 55... Qg6 {[%clk 0:00:10]} 56. Qb3
{[%clk 0:01:29.9]} 56... Nh5 {[%clk 0:00:10.2]} 57. Qf3 {[%clk 0:01:27.3]} 57...
Kh6 {[%clk 0:00:08.1]} 58. Kh1 {[%clk 0:01:26.9]} 58... Qg5 {[%clk 0:00:06.8]}
59. Qc6+ {[%clk 0:01:25.9]} 59... g6 {[%clk 0:00:05.4]} 60. Qc3 {[%clk
0:01:21.6]} 60... Qf4 {[%clk 0:00:03.5]} 61. Kg1 {[%clk 0:01:17.2]} 61... Ng3
{[%clk 0:00:03.1]} 62. Qh8+ {[%clk 0:01:16.5]} 62... Kg5 {[%clk 0:00:03.9]} 63.
Qd8+ {[%clk 0:01:16.7]} 63... Kh5 {[%clk 0:00:03.3]} 64. Qd1+ {[%clk 0:01:14.7]}
64... Kh6 {[%clk 0:00:03.3]} 65. Qa1 {[%clk 0:01:05.4]} 65... Ne4 {[%clk
0:00:02.7]} 66. Qh8+ {[%clk 0:01:04.2]} 66... Kg5 {[%clk 0:00:03.6]} 67. Qd8+
{[%clk 0:01:03.3]} 67... Qf6 {[%clk 0:00:04]} 68. Qd5+ {[%clk 0:01:03.2]} 68...
Qf5 {[%clk 0:00:04.9]} 69. Qd8+ {[%clk 0:01:03.1]} 69... Kh6 {[%clk 0:00:04.3]}
70. h4 {[%clk 0:00:57.4]} 70... Qf2+ {[%clk 0:00:03.9]} 71. Kh2 {[%clk
0:00:57.1]} 71... Qg3+ {[%clk 0:00:04]} 72. Kg1 {[%clk 0:00:57.1]} 72... Qe1+
{[%clk 0:00:04.8]} 73. Kh2 {[%clk 0:00:57.4]} 73... Qg3+ {[%clk 0:00:05.1]} 74.
Kh1 {[%clk 0:00:57.8]} 74... Nf2+ {[%clk 0:00:04.6]} 75. Kg1 {[%clk 0:00:58.2]}
75... Nh3+ {[%clk 0:00:05]} 76. Kh1 {[%clk 0:00:58.8]} 76... Nf2+ {[%clk
0:00:04.5]} 77. Kg1 {[%clk 0:00:59.3]} 77... Nh3+ {[%clk 0:00:04.9]} 78. Kh1
{[%clk 0:00:59.9]} 78... Nf2+ {[%clk 0:00:05.2]} 1/2-1/2

[Event "Late-Titled-Tuesday-Blitz-September-12-2023"]
[Site "Chess.com"]
[Date "2023.09.12"]
[Round "7"]
[White "Michalczak"]
[Black "Athanasios2"]
[Result "1/2-1/2"]
[WhiteElo "2517"]
[BlackElo "2701"]
[TimeControl "180+1"]
[EndTime "15:15:25 PDT"]
[Termination "Game drawn - insufficient material"]

1. e4 {[%clk 0:03:00.9]} 1... c5 {[%clk 0:03:00]} 2. c3 {[%clk 0:03:01.3]} 2...
d6 {[%clk 0:02:57.4]} 3. d4 {[%clk 0:03:00.2]} 3... cxd4 {[%clk 0:02:58.3]} 4.
cxd4 {[%clk 0:02:59.6]} 4... g6 {[%clk 0:02:58.9]} 5. Nc3 {[%clk 0:02:59.3]}
5... Bg7 {[%clk 0:02:59.5]} 6. Nf3 {[%clk 0:02:58.6]} 6... Nf6 {[%clk 0:03:00]}
7. h3 {[%clk 0:02:58.6]} 7... O-O {[%clk 0:03:00.5]} 8. Bd3 {[%clk 0:02:58.6]}
8... a6 {[%clk 0:03:00.3]} 9. O-O {[%clk 0:02:57.3]} 9... Nc6 {[%clk 0:02:57.7]}
10. Re1 {[%clk 0:02:50.6]} 10... b5 {[%clk 0:02:53.9]} 11. a3 {[%clk 0:02:40]}
11... Bb7 {[%clk 0:02:53.6]} 12. e5 {[%clk 0:02:32.3]} 12... dxe5 {[%clk
0:02:52.5]} 13. dxe5 {[%clk 0:02:33.2]} 13... Nd5 {[%clk 0:02:48.5]} 14. e6
{[%clk 0:02:21.3]} 14... f5 {[%clk 0:02:44.6]} 15. Bd2 {[%clk 0:01:49.1]} 15...
Nd4 {[%clk 0:02:18.5]} 16. Nxd4 {[%clk 0:01:42.7]} 16... Bxd4 {[%clk 0:02:18.6]}
17. Bh6 {[%clk 0:01:42.7]} 17... Re8 {[%clk 0:02:11.2]} 18. Nxb5 {[%clk
0:01:29.6]} 18... Bf6 {[%clk 0:01:46.1]} 19. Nc3 {[%clk 0:01:22.7]} 19... Nxc3
{[%clk 0:01:19.3]} 20. bxc3 {[%clk 0:01:23.6]} 20... Bxc3 {[%clk 0:01:18.4]} 21.
Re3 {[%clk 0:01:24.3]} 21... Qd5 {[%clk 0:01:16.1]} 22. Bf1 {[%clk 0:01:21.9]}
22... Bf6 {[%clk 0:00:57.9]} 23. Qxd5 {[%clk 0:01:14]} 23... Bxd5 {[%clk
0:00:58.8]} 24. Rd1 {[%clk 0:01:13.6]} 24... Bc6 {[%clk 0:00:59.4]} 25. g3
{[%clk 0:00:59.6]} 25... Rec8 {[%clk 0:00:58]} 26. h4 {[%clk 0:00:56.3]} 26...
Ba4 {[%clk 0:00:53]} 27. Rb1 {[%clk 0:00:47.6]} 27... Bc6 {[%clk 0:00:45.1]} 28.
Rc1 {[%clk 0:00:42.2]} 28... a5 {[%clk 0:00:40.3]} 29. Kh2 {[%clk 0:00:26.9]}
29... Bd5 {[%clk 0:00:38.7]} 30. Rd1 {[%clk 0:00:24.8]} 30... Be4 {[%clk
0:00:34.3]} 31. Bg2 {[%clk 0:00:22]} 31... Bxg2 {[%clk 0:00:29.5]} 32. Kxg2
{[%clk 0:00:21.9]} 32... Ra6 {[%clk 0:00:27.8]} 33. Rd7 {[%clk 0:00:17.2]} 33...
a4 {[%clk 0:00:17.4]} 34. Kf3 {[%clk 0:00:17.7]} 34... Rac6 {[%clk 0:00:14.6]}
35. Ra7 {[%clk 0:00:17.6]} 35... Rc4 {[%clk 0:00:14.2]} 36. Ra6 {[%clk
0:00:14.7]} 36... Rg4 {[%clk 0:00:10.1]} 37. Rd3 {[%clk 0:00:14.5]} 37... g5
{[%clk 0:00:08.1]} 38. hxg5 {[%clk 0:00:14.1]} 38... Bxg5 {[%clk 0:00:09]} 39.
Bxg5 {[%clk 0:00:14.7]} 39... Rxg5 {[%clk 0:00:09.9]} 40. Kf4 {[%clk 0:00:15]}
40... h6 {[%clk 0:00:09.6]} 41. Ke5 {[%clk 0:00:14.7]} 41... Rc5+ {[%clk
0:00:06.7]} 42. Rd5 {[%clk 0:00:15.2]} 42... Rxd5+ {[%clk 0:00:06.4]} 43. Kxd5
{[%clk 0:00:16.1]} 43... f4+ {[%clk 0:00:07.3]} 44. Ke4 {[%clk 0:00:16.8]} 44...
fxg3 {[%clk 0:00:07.6]} 45. fxg3 {[%clk 0:00:17.2]} 45... Rxg3 {[%clk
0:00:08.3]} 46. Kf5 {[%clk 0:00:15.2]} 46... Kg7 {[%clk 0:00:06.1]} 47. Rxa4
{[%clk 0:00:15.1]} 47... Rf3+ {[%clk 0:00:05.4]} 48. Kg4 {[%clk 0:00:15.2]}
48... Re3 {[%clk 0:00:05.8]} 49. Kf5 {[%clk 0:00:15.8]} 49... h5 {[%clk
0:00:05.4]} 50. Ra7 {[%clk 0:00:14.2]} 50... Rf3+ {[%clk 0:00:03.7]} 51. Kg5
{[%clk 0:00:14.7]} 51... Kf8 {[%clk 0:00:01.1]} 52. Kxh5 {[%clk 0:00:14]} 52...
Re3 {[%clk 0:00:01.2]} 53. Ra6 {[%clk 0:00:13.3]} 53... Kg7 {[%clk 0:00:01.8]}
54. Kg5 {[%clk 0:00:13.7]} 54... Re5+ {[%clk 0:00:02.5]} 55. Kf4 {[%clk
0:00:14]} 55... Kf6 {[%clk 0:00:03.4]} 56. a4 {[%clk 0:00:13.6]} 56... Rh5
{[%clk 0:00:04]} 57. Kg4 {[%clk 0:00:13.2]} 57... Rc5 {[%clk 0:00:04]} 58. Kf4
{[%clk 0:00:13.4]} 58... Rc4+ {[%clk 0:00:04.5]} 59. Ke3 {[%clk 0:00:13.5]}
59... Ke5 {[%clk 0:00:04.7]} 60. Kd3 {[%clk 0:00:12.6]} 60... Rh4 {[%clk
0:00:05.1]} 61. Ke3 {[%clk 0:00:13]} 61... Rh3+ {[%clk 0:00:05.2]} 62. Kd2
{[%clk 0:00:13.7]} 62... Ra3 {[%clk 0:00:05.9]} 63. Kc2 {[%clk 0:00:13.9]} 63...
Rh3 {[%clk 0:00:04.7]} 64. Kb2 {[%clk 0:00:14.6]} 64... Kd5 {[%clk 0:00:04.8]}
65. Kc2 {[%clk 0:00:15]} 65... Ra3 {[%clk 0:00:04.3]} 66. Kd2 {[%clk 0:00:15.3]}
66... Kd4 {[%clk 0:00:03.8]} 67. Ke2 {[%clk 0:00:15.5]} 67... Ke4 {[%clk
0:00:03.4]} 68. Kf2 {[%clk 0:00:16]} 68... Ke5 {[%clk 0:00:03.6]} 69. Kg2 {[%clk
0:00:16.1]} 69... Kf4 {[%clk 0:00:04]} 70. Ra7 {[%clk 0:00:14.5]} 70... Kf5
{[%clk 0:00:01.9]} 71. Rxe7 {[%clk 0:00:11.5]} 71... Rxa4 {[%clk 0:00:02.5]} 72.
Re8 {[%clk 0:00:11.4]} 72... Kf6 {[%clk 0:00:03]} 73. Kf3 {[%clk 0:00:11]} 73...
Ra6 {[%clk 0:00:02.1]} 74. Kf4 {[%clk 0:00:11.4]} 74... Ra4+ {[%clk 0:00:02.4]}
75. Ke3 {[%clk 0:00:11.6]} 75... Ra5 {[%clk 0:00:02.4]} 76. Kd4 {[%clk
0:00:11.9]} 76... Ra4+ {[%clk 0:00:01.8]} 77. Kd5 {[%clk 0:00:12.3]} 77... Ra5+
{[%clk 0:00:02.5]} 78. Kd6 {[%clk 0:00:12.8]} 78... Ra6+ {[%clk 0:00:03.1]} 79.
Kd5 {[%clk 0:00:12.4]} 79... Ra5+ {[%clk 0:00:03.5]} 80. Ke4 {[%clk 0:00:13]}
80... Re5+ {[%clk 0:00:03.2]} 81. Kd4 {[%clk 0:00:13.3]} 81... Rxe6 {[%clk
0:00:03.3]} 82. Rxe6+ {[%clk 0:00:13.4]} 82... Kxe6 {[%clk 0:00:04.2]} 1/2-1/2